[Event "*** Titled Tuesday Blitz"]
[Site "Chess.com"]
[Date "2019.01.01"]
[Round "1"]
[White "andrzej"]
[Black "Airquake"]
[Result "1-0"]
[WhiteElo "2270"]
[BlackElo "2581"]
[TimeControl "180+2"]
[EndTime "13:09:23 PST"]
[Termination "andrzej won by checkmate"]

1. d4 {[%clk 0:02:56.8]} 1... Nf6 {[%clk 0:02:59.8]} 2. c4 {[%clk 0:02:57.6]}
2... e6 {[%clk 0:03:00.7]} 3. g3 {[%clk 0:02:58.5]} 3... d5 {[%clk 0:03:01.4]}
4. Nf3 {[%clk 0:02:59.5]} 4... Be7 {[%clk 0:03:02.6]} 5. Bg2 {[%clk 0:03:00.1]}
5... O-O {[%clk 0:03:04.2]} 6. O-O {[%clk 0:03:01.7]} 6... c6 {[%clk 0:03:05.2]}
7. Nbd2 {[%clk 0:03:01.2]} 7... Nbd7 {[%clk 0:03:04.6]} 8. Qc2 {[%clk
0:03:01.9]} 8... h6 {[%clk 0:02:51.5]} 9. Rd1 {[%clk 0:03:00.4]} 9... Re8 {[%clk
0:02:49.2]} 10. b3 {[%clk 0:02:58.7]} 10... Bf8 {[%clk 0:02:47]} 11. Bb2 {[%clk
0:02:59.7]} 11... b6 {[%clk 0:02:47.4]} 12. e4 {[%clk 0:02:56.3]} 12... dxe4
{[%clk 0:02:38.5]} 13. Nxe4 {[%clk 0:02:58.2]} 13... Nxe4 {[%clk 0:02:40.4]} 14.
Qxe4 {[%clk 0:02:59.3]} 14... Bb7 {[%clk 0:02:42.3]} 15. Ne5 {[%clk 0:02:52.2]}
15... Qc8 {[%clk 0:02:38.5]} 16. Rac1 {[%clk 0:02:40.4]} 16... Nf6 {[%clk
0:02:39.2]} 17. Qf3 {[%clk 0:02:22.8]} 17... a5 {[%clk 0:02:36.2]} 18. c5 {[%clk
0:02:21.3]} 18... b5 {[%clk 0:02:20.8]} 19. a3 {[%clk 0:02:12.4]} 19... Qc7
{[%clk 0:02:17.2]} 20. Rd3 {[%clk 0:02:00.3]} 20... Nd5 {[%clk 0:02:16.7]} 21.
Re1 {[%clk 0:01:51.1]} 21... Rad8 {[%clk 0:02:15.8]} 22. h4 {[%clk 0:01:47.5]}
22... b4 {[%clk 0:02:13.8]} 23. axb4 {[%clk 0:01:37.4]} 23... axb4 {[%clk
0:02:14.7]} 24. Rdd1 {[%clk 0:01:30.8]} 24... Ra8 {[%clk 0:02:15.5]} 25. Ra1
{[%clk 0:01:30.3]} 25... Ba6 {[%clk 0:01:56]} 26. Ra4 {[%clk 0:01:16.7]} 26...
Bb5 {[%clk 0:01:56.6]} 27. Raa1 {[%clk 0:01:15.5]} 27... Red8 {[%clk 0:01:45]}
28. h5 {[%clk 0:01:10.7]} 28... Rxa1 {[%clk 0:01:31.9]} 29. Rxa1 {[%clk
0:01:11.7]} 29... Rc8 {[%clk 0:01:31.5]} 30. Bh3 {[%clk 0:01:10.3]} 30... Nf6
{[%clk 0:01:30.7]} 31. Re1 {[%clk 0:01:06.3]} 31... Ra8 {[%clk 0:01:30.3]} 32.
Nxf7 {[%clk 0:01:03.7]} 32... Kxf7 {[%clk 0:01:02.9]} 33. Bxe6+ {[%clk
0:01:04.5]} 33... Ke8 {[%clk 0:01:04.1]} 34. d5 {[%clk 0:00:57.1]} 34... Bxc5
{[%clk 0:00:50.1]} 35. Be5 {[%clk 0:00:31.7]} 35... Bd6 {[%clk 0:00:47.7]} 36.
Bxf6 {[%clk 0:00:31.1]} 36... gxf6 {[%clk 0:00:46.6]} 37. Qxf6 {[%clk
0:00:32.3]} 37... Qe7 {[%clk 0:00:47.5]} 38. Bf7+ {[%clk 0:00:27.6]} 38... Kd7
{[%clk 0:00:36.7]} 39. Rxe7+ {[%clk 0:00:26.1]} 39... Bxe7 {[%clk 0:00:37.5]}
40. Qe6+ {[%clk 0:00:26.9]} 40... Kd8 {[%clk 0:00:36.1]} 41. dxc6 {[%clk
0:00:24.4]} 41... Ra1+ {[%clk 0:00:37]} 42. Kh2 {[%clk 0:00:25]} 42... Rd1
{[%clk 0:00:38.9]} 43. c7+ {[%clk 0:00:20.4]} 43... Kxc7 {[%clk 0:00:37.1]} 44.
Qxe7+ {[%clk 0:00:21.7]} 44... Kb6 {[%clk 0:00:35.2]} 45. Qxb4 {[%clk
0:00:21.4]} 45... Ka6 {[%clk 0:00:35.4]} 46. Bc4 {[%clk 0:00:22]} 46... Bxc4
{[%clk 0:00:36.3]} 47. Qxc4+ {[%clk 0:00:23.3]} 47... Kb6 {[%clk 0:00:37.8]} 48.
Qe6+ {[%clk 0:00:23.2]} 48... Kc5 {[%clk 0:00:37.8]} 49. Qxh6 {[%clk 0:00:24.5]}
49... Rd2 {[%clk 0:00:37.9]} 50. Qxd2 {[%clk 0:00:25.4]} 50... Kb5 {[%clk
0:00:39.5]} 51. h6 {[%clk 0:00:26.3]} 51... Kc5 {[%clk 0:00:39.9]} 52. h7 {[%clk
0:00:27.5]} 52... Kb5 {[%clk 0:00:41.8]} 53. h8=Q {[%clk 0:00:28.5]} 53... Kc5
{[%clk 0:00:43.7]} 54. Qc8+ {[%clk 0:00:29.1]} 54... Kb5 {[%clk 0:00:45.6]} 55.
Qd3+ {[%clk 0:00:29.7]} 55... Kb4 {[%clk 0:00:46.8]} 56. Qcc4+ {[%clk
0:00:30.4]} 56... Ka3 {[%clk 0:00:48.2]} 57. Qa4+ {[%clk 0:00:31.5]} 57... Kb2
{[%clk 0:00:49.5]} 58. Qd2+ {[%clk 0:00:30.8]} 58... Kb1 {[%clk 0:00:50.8]} 59.
Qaa2# {[%clk 0:00:31.6]} 1-0

[Event "*** Titled Tuesday Blitz"]
[Site "Chess.com"]
[Date "2019.01.01"]
[Round "1"]
[White "jmduque"]
[Black "Fins0905"]
[Result "0-1"]
[WhiteElo "2208"]
[BlackElo "2567"]
[TimeControl "180+2"]
[EndTime "13:09:27 PST"]
[Termination "Fins0905 won on time"]

1. e4 {[%clk 0:03:00]} 1... d5 {[%clk 0:02:57.9]} 2. exd5 {[%clk 0:03:00.2]}
2... Qxd5 {[%clk 0:02:58.6]} 3. Nc3 {[%clk 0:03:01.1]} 3... Qa5 {[%clk
0:02:58.9]} 4. d4 {[%clk 0:03:02.4]} 4... Nf6 {[%clk 0:02:59.8]} 5. Bc4 {[%clk
0:03:02.1]} 5... c6 {[%clk 0:03:00.1]} 6. Bd2 {[%clk 0:03:02.9]} 6... Bf5 {[%clk
0:03:00.6]} 7. Nf3 {[%clk 0:03:03.1]} 7... e6 {[%clk 0:03:01.3]} 8. Nd5 {[%clk
0:03:04.2]} 8... Qd8 {[%clk 0:03:01.6]} 9. Nxf6+ {[%clk 0:03:05.4]} 9... gxf6
{[%clk 0:03:01.5]} 10. Bb3 {[%clk 0:03:05.1]} 10... Nd7 {[%clk 0:03:01.6]} 11.
Qe2 {[%clk 0:03:06.4]} 11... Qc7 {[%clk 0:03:02.6]} 12. O-O-O {[%clk 0:03:07.5]}
12... O-O-O {[%clk 0:03:02.8]} 13. Nh4 {[%clk 0:03:08.5]} 13... Bg6 {[%clk
0:03:00.7]} 14. g3 {[%clk 0:03:09.3]} 14... Kb8 {[%clk 0:02:58.3]} 15. Ng2
{[%clk 0:03:09.6]} 15... Bd6 {[%clk 0:02:55.8]} 16. h4 {[%clk 0:03:10.4]} 16...
h5 {[%clk 0:02:50.3]} 17. Nf4 {[%clk 0:03:08.9]} 17... Bf5 {[%clk 0:02:51.1]}
18. Nxh5 {[%clk 0:03:06]} 18... c5 {[%clk 0:02:52]} 19. Bf4 {[%clk 0:02:58.6]}
19... Bxf4+ {[%clk 0:02:13.5]} 20. Nxf4 {[%clk 0:02:53.9]} 20... cxd4 {[%clk
0:02:14.7]} 21. Rxd4 {[%clk 0:02:53.6]} 21... Nc5 {[%clk 0:02:04.7]} 22. Rxd8+
{[%clk 0:02:53]} 22... Rxd8 {[%clk 0:02:05.3]} 23. Rd1 {[%clk 0:02:48.4]} 23...
Rc8 {[%clk 0:01:55.4]} 24. Rd2 {[%clk 0:02:37.5]} 24... a5 {[%clk 0:01:12]} 25.
Qc4 {[%clk 0:02:10.1]} 25... Qc6 {[%clk 0:00:49.5]} 26. a4 {[%clk 0:01:38.8]}
26... Qh1+ {[%clk 0:00:38.9]} 27. Rd1 {[%clk 0:01:39.6]} 27... Qf3 {[%clk
0:00:27]} 28. Nd3 {[%clk 0:00:47.7]} 28... Nxd3+ {[%clk 0:00:11.1]} 29. Rxd3
{[%clk 0:00:48.7]} 29... Qxf2 {[%clk 0:00:07.6]} 30. Qd4 {[%clk 0:00:49.9]}
30... Qe1+ {[%clk 0:00:03.7]} 31. Rd1 {[%clk 0:00:50.9]} 31... Qe2 {[%clk
0:00:04.9]} 32. Qf4+ {[%clk 0:00:41.3]} 32... Ka8 {[%clk 0:00:05]} 33. Rd2
{[%clk 0:00:42.2]} 33... Qe1+ {[%clk 0:00:04.2]} 34. Rd1 {[%clk 0:00:43.6]}
34... Qe2 {[%clk 0:00:05.2]} 35. Rd2 {[%clk 0:00:44.5]} 35... Qe1+ {[%clk
0:00:04.4]} 36. Rd1 {[%clk 0:00:45.9]} 36... Qe2 {[%clk 0:00:04.5]} 37. Rd2
{[%clk 0:00:46.4]} 37... Qa6 {[%clk 0:00:05.4]} 38. h5 {[%clk 0:00:47.1]} 38...
Qc6 {[%clk 0:00:06.1]} 39. Rh2 {[%clk 0:00:45.5]} 39... Rd8 {[%clk 0:00:03.3]}
40. h6 {[%clk 0:00:45.9]} 40... Bh7 {[%clk 0:00:04.1]} 41. Qxf6 {[%clk
0:00:44.6]} 41... Qd6 {[%clk 0:00:05.4]} 42. Qf1 {[%clk 0:00:44.2]} 42... Qe5
{[%clk 0:00:03.7]} 43. Rd2 {[%clk 0:00:42.8]} 43... Rg8 {[%clk 0:00:04.2]} 44.
Qxf7 {[%clk 0:00:41.4]} 44... Rxg3 {[%clk 0:00:04.2]} 45. Qxh7 {[%clk
0:00:26.2]} 45... Rg1+ {[%clk 0:00:04.1]} 46. Rd1 {[%clk 0:00:27.4]} 46... Qe3+
{[%clk 0:00:04.4]} 47. Kb1 {[%clk 0:00:28.4]} 47... Rxd1+ {[%clk 0:00:06]} 48.
Ka2 {[%clk 0:00:29.8]} 48... Qe1 {[%clk 0:00:06.8]} 0-1

[Event "*** Titled Tuesday Blitz"]
[Site "Chess.com"]
[Date "2019.01.01"]
[Round "1"]
[White "Msb2"]
[Black "ehrenfeld"]
[Result "1-0"]
[WhiteElo "2806"]
[BlackElo "2424"]
[TimeControl "180+2"]
[EndTime "13:09:28 PST"]
[Termination "Msb2 won by resignation"]

1. d4 {[%clk 0:03:01.9]} 1... Nf6 {[%clk 0:02:59.8]} 2. Nf3 {[%clk 0:02:54.6]}
2... e6 {[%clk 0:03:00.4]} 3. g3 {[%clk 0:02:47.8]} 3... b5 {[%clk 0:02:59.8]}
4. Bg2 {[%clk 0:02:45.9]} 4... Bb7 {[%clk 0:03:00.7]} 5. O-O {[%clk 0:02:43.2]}
5... c5 {[%clk 0:03:01.4]} 6. c3 {[%clk 0:02:43.7]} 6... Be7 {[%clk 0:02:59.5]}
7. Bg5 {[%clk 0:02:28.1]} 7... Na6 {[%clk 0:02:58.3]} 8. e3 {[%clk 0:02:27.2]}
8... O-O {[%clk 0:02:57.8]} 9. Qe2 {[%clk 0:02:28.3]} 9... Qb6 {[%clk
0:02:51.6]} 10. Na3 {[%clk 0:02:23.1]} 10... Nc7 {[%clk 0:02:41.7]} 11. Rfd1
{[%clk 0:02:09.3]} 11... c4 {[%clk 0:02:34.5]} 12. Bxf6 {[%clk 0:02:01.9]} 12...
Bxf6 {[%clk 0:02:35.4]} 13. e4 {[%clk 0:02:03.8]} 13... Be7 {[%clk 0:02:35.9]}
14. Nc2 {[%clk 0:02:03.1]} 14... d6 {[%clk 0:02:34.8]} 15. h4 {[%clk 0:01:55.7]}
15... d5 {[%clk 0:02:23.3]} 16. e5 {[%clk 0:01:54]} 16... a5 {[%clk 0:02:20.8]}
17. g4 {[%clk 0:01:42.2]} 17... f5 {[%clk 0:02:10]} 18. exf6 {[%clk 0:01:42.4]}
18... Rxf6 {[%clk 0:02:10.4]} 19. Ne5 {[%clk 0:01:30.3]} 19... Bc6 {[%clk
0:01:56.6]} 20. a4 {[%clk 0:01:21.8]} 20... b4 {[%clk 0:01:55.3]} 21. Ne3 {[%clk
0:01:20.1]} 21... Raf8 {[%clk 0:01:40.7]} 22. N3xc4 {[%clk 0:01:16.4]} 22...
dxc4 {[%clk 0:01:39.4]} 23. Nxc6 {[%clk 0:01:16.7]} 23... Bd6 {[%clk 0:01:34.5]}
24. Rf1 {[%clk 0:00:47.1]} 24... Nd5 {[%clk 0:01:24.2]} 25. Qxc4 {[%clk
0:00:41.5]} 25... Nf4 {[%clk 0:01:17.7]} 26. g5 {[%clk 0:00:40.2]} 26... Rf5
{[%clk 0:01:16.9]} 27. Rae1 {[%clk 0:00:34.2]} 27... Kh8 {[%clk 0:01:08.3]} 28.
Kh1 {[%clk 0:00:29.6]} 28... h6 {[%clk 0:01:06.7]} 29. Be4 {[%clk 0:00:30.2]}
29... hxg5 {[%clk 0:00:52.9]} 30. Bxf5 {[%clk 0:00:30.6]} 30... Rxf5 {[%clk
0:00:53.3]} 31. Ne5 {[%clk 0:00:29.7]} 31... Qb7+ {[%clk 0:00:35.9]} 32. f3
{[%clk 0:00:30.4]} 32... Qe7 {[%clk 0:00:31.7]} 33. Ng4 {[%clk 0:00:22]} 33...
gxh4 {[%clk 0:00:28]} 34. Re4 {[%clk 0:00:22.8]} 34... h3 {[%clk 0:00:26.2]} 35.
d5 {[%clk 0:00:12.5]} 35... exd5 {[%clk 0:00:17.8]} 36. Rxe7 {[%clk 0:00:13.2]}
36... dxc4 {[%clk 0:00:17.9]} 37. Re4 {[%clk 0:00:14.8]} 37... bxc3 {[%clk
0:00:17.2]} 38. bxc3 {[%clk 0:00:16.7]} 38... Rd5 {[%clk 0:00:15.3]} 39. Rd4
{[%clk 0:00:14.6]} 39... Rxd4 {[%clk 0:00:14.4]} 40. cxd4 {[%clk 0:00:16.5]}
40... Ne2 {[%clk 0:00:15.7]} 41. Re1 {[%clk 0:00:16.3]} 41... Nxd4 {[%clk
0:00:12.9]} 42. Re4 {[%clk 0:00:17]} 42... Bc5 {[%clk 0:00:10.7]} 43. Re8+
{[%clk 0:00:15.5]} 43... Kh7 {[%clk 0:00:11.3]} 44. Rc8 {[%clk 0:00:17.4]} 44...
Nb3 {[%clk 0:00:06.3]} 45. Ne5 {[%clk 0:00:04.4]} 45... c3 {[%clk 0:00:06.9]}
46. Nd3 {[%clk 0:00:06]} 46... c2 {[%clk 0:00:08.1]} 47. Kh2 {[%clk 0:00:07.4]}
47... Kg6 {[%clk 0:00:07.8]} 48. Kxh3 {[%clk 0:00:08.6]} 48... Kf5 {[%clk
0:00:09.1]} 49. Kg2 {[%clk 0:00:10.1]} 49... Ke6 {[%clk 0:00:08.6]} 50. Nxc5+
{[%clk 0:00:11.2]} 1-0

[Event "*** Titled Tuesday Blitz"]
[Site "Chess.com"]
[Date "2019.01.01"]
[Round "1"]
[White "ChristopherYoo"]
[Black "StoreySniper"]
[Result "0-1"]
[WhiteElo "2639"]
[BlackElo "2323"]
[TimeControl "180+2"]
[EndTime "13:09:33 PST"]
[Termination "StoreySniper won by resignation"]

1. e4 {[%clk 0:03:01.9]} 1... g6 {[%clk 0:03:01]} 2. d4 {[%clk 0:03:02.6]} 2...
Bg7 {[%clk 0:03:02.6]} 3. Nc3 {[%clk 0:03:03]} 3... c5 {[%clk 0:03:03.6]} 4.
dxc5 {[%clk 0:02:59.2]} 4... Bxc3+ {[%clk 0:03:03.6]} 5. bxc3 {[%clk 0:02:59.7]}
5... Nf6 {[%clk 0:03:05.5]} 6. f3 {[%clk 0:02:38.7]} 6... Qa5 {[%clk 0:03:04.3]}
7. Qd4 {[%clk 0:02:36.2]} 7... Nc6 {[%clk 0:03:04.5]} 8. Qe3 {[%clk 0:02:32.5]}
8... b6 {[%clk 0:03:03.1]} 9. cxb6 {[%clk 0:02:31.1]} 9... axb6 {[%clk 0:03:04]}
10. Bc4 {[%clk 0:02:07.9]} 10... Ba6 {[%clk 0:03:04.2]} 11. Bxa6 {[%clk
0:02:07.3]} 11... Rxa6 {[%clk 0:03:04.1]} 12. Ne2 {[%clk 0:02:08.3]} 12... O-O
{[%clk 0:03:03.5]} 13. O-O {[%clk 0:02:09.2]} 13... Qa4 {[%clk 0:02:48.1]} 14.
Qd2 {[%clk 0:01:48.4]} 14... Rc8 {[%clk 0:02:42]} 15. a3 {[%clk 0:01:26.2]}
15... d6 {[%clk 0:02:39.8]} 16. Rf2 {[%clk 0:01:22]} 16... Ra5 {[%clk
0:02:23.9]} 17. Nd4 {[%clk 0:01:13.8]} 17... Rc5 {[%clk 0:02:21]} 18. Nb3 {[%clk
0:01:05]} 18... Rc4 {[%clk 0:02:09.3]} 19. Bb2 {[%clk 0:01:04.8]} 19... Ne5
{[%clk 0:02:06.3]} 20. Qe2 {[%clk 0:00:54.2]} 20... R4c7 {[%clk 0:01:57.3]} 21.
Nd4 {[%clk 0:00:51.7]} 21... Nc4 {[%clk 0:01:57.1]} 22. Bc1 {[%clk 0:00:52.7]}
22... e5 {[%clk 0:01:56.3]} 23. Nb3 {[%clk 0:00:51.8]} 23... Na5 {[%clk
0:01:52.6]} 24. Nxa5 {[%clk 0:00:51.5]} 24... bxa5 {[%clk 0:01:48.4]} 25. Bg5
{[%clk 0:00:51.5]} 25... Nh5 {[%clk 0:01:45.5]} 26. g4 {[%clk 0:00:42.7]} 26...
Ng7 {[%clk 0:01:45.6]} 27. Qd3 {[%clk 0:00:35.4]} 27... Ne6 {[%clk 0:01:36.3]}
28. Bf6 {[%clk 0:00:34.7]} 28... Rc6 {[%clk 0:01:22.2]} 29. Rd1 {[%clk
0:00:26.9]} 29... Qxa3 {[%clk 0:01:19.5]} 30. Rfd2 {[%clk 0:00:17.4]} 30... Qc5+
{[%clk 0:01:19.5]} 31. Kh1 {[%clk 0:00:17.6]} 31... Nf4 {[%clk 0:01:16]} 32. Qf1
{[%clk 0:00:18.6]} 32... h6 {[%clk 0:01:14.2]} 33. Qe1 {[%clk 0:00:15.4]} 33...
Qxc3 {[%clk 0:01:05.7]} 34. Qg3 {[%clk 0:00:08.5]} 34... Qb2 {[%clk 0:00:51.4]}
35. Qh4 {[%clk 0:00:08.1]} 35... Kh7 {[%clk 0:00:39.3]} 36. Bg5 {[%clk
0:00:08.3]} 36... Kg8 {[%clk 0:00:14.1]} 37. Qxh6 {[%clk 0:00:04.8]} 37... d5
{[%clk 0:00:15.6]} 38. exd5 {[%clk 0:00:04.3]} 38... Qc3 {[%clk 0:00:14.3]} 39.
Rf2 {[%clk 0:00:03.3]} 39... Rd6 {[%clk 0:00:14.9]} 40. Bxf4 {[%clk 0:00:04.1]}
40... exf4 {[%clk 0:00:15.7]} 41. Qxf4 {[%clk 0:00:06]} 41... Qc5 {[%clk
0:00:16.9]} 42. c4 {[%clk 0:00:06.2]} 42... Qxf2 {[%clk 0:00:17.3]} 43. g5
{[%clk 0:00:03.9]} 43... Rcd8 {[%clk 0:00:17.3]} 44. Rc1 {[%clk 0:00:03.9]}
44... Qe2 {[%clk 0:00:17.1]} 45. h4 {[%clk 0:00:03.4]} 45... a4 {[%clk
0:00:17.1]} 46. Kg1 {[%clk 0:00:02.8]} 46... a3 {[%clk 0:00:17.8]} 47. Qd4
{[%clk 0:00:02.7]} 47... Qb2 {[%clk 0:00:17.1]} 48. Qe3 {[%clk 0:00:02.9]} 48...
a2 {[%clk 0:00:16.9]} 49. c5 {[%clk 0:00:04.4]} 49... Rxd5 {[%clk 0:00:14.3]}
50. Qe1 {[%clk 0:00:05.5]} 50... Qxc1 {[%clk 0:00:14.3]} 51. Qxc1 {[%clk
0:00:06.4]} 51... Rd1+ {[%clk 0:00:15.4]} 52. Kf2 {[%clk 0:00:05.8]} 52... Rxc1
{[%clk 0:00:15.7]} 53. h5 {[%clk 0:00:06.6]} 53... a1=Q {[%clk 0:00:16.8]} 54.
hxg6 {[%clk 0:00:06.8]} 54... Qd4+ {[%clk 0:00:17.4]} 0-1

[Event "*** Titled Tuesday Blitz"]
[Site "Chess.com"]
[Date "2019.01.01"]
[Round "1"]
[White "alpasya2009"]
[Black "dmosesov"]
[Result "1-0"]
[WhiteElo "2668"]
[BlackElo "2325"]
[TimeControl "180+2"]
[EndTime "13:09:34 PST"]
[Termination "alpasya2009 won on time"]

1. d4 {[%clk 0:02:57.5]} 1... Nf6 {[%clk 0:03:00.1]} 2. c4 {[%clk 0:02:58.6]}
2... e6 {[%clk 0:03:00.7]} 3. Nf3 {[%clk 0:02:58.6]} 3... d5 {[%clk 0:02:59.8]}
4. g3 {[%clk 0:02:59.6]} 4... dxc4 {[%clk 0:02:58.8]} 5. Bg2 {[%clk 0:03:00.4]}
5... b5 {[%clk 0:02:59.9]} 6. Ne5 {[%clk 0:02:57.2]} 6... Nd5 {[%clk 0:03:01.1]}
7. a4 {[%clk 0:02:42.8]} 7... c6 {[%clk 0:03:01.6]} 8. O-O {[%clk 0:02:36.2]}
8... Bb7 {[%clk 0:03:01.3]} 9. e4 {[%clk 0:02:30.7]} 9... Nf6 {[%clk 0:02:41.1]}
10. Nc3 {[%clk 0:02:31.9]} 10... a6 {[%clk 0:02:40.5]} 11. Be3 {[%clk
0:01:57.9]} 11... Be7 {[%clk 0:02:22.9]} 12. f4 {[%clk 0:01:27.6]} 12... O-O
{[%clk 0:01:54]} 13. axb5 {[%clk 0:01:18.3]} 13... cxb5 {[%clk 0:01:51.5]} 14.
d5 {[%clk 0:01:19.6]} 14... exd5 {[%clk 0:01:48.3]} 15. exd5 {[%clk 0:01:20]}
15... Bd6 {[%clk 0:01:14.3]} 16. b3 {[%clk 0:01:16.8]} 16... cxb3 {[%clk
0:01:11.5]} 17. Qxb3 {[%clk 0:01:17.7]} 17... Nbd7 {[%clk 0:01:10.8]} 18. Nc6
{[%clk 0:01:16]} 18... Qc7 {[%clk 0:01:10.6]} 19. Rac1 {[%clk 0:01:12.6]} 19...
Rae8 {[%clk 0:00:58.1]} 20. Bd4 {[%clk 0:01:09.6]} 20... Nc5 {[%clk 0:00:37.5]}
21. Qc2 {[%clk 0:01:07.8]} 21... Nfd7 {[%clk 0:00:37]} 22. Rfe1 {[%clk
0:01:03.4]} 22... Rxe1+ {[%clk 0:00:21.3]} 23. Rxe1 {[%clk 0:01:05.3]} 23... Qb6
{[%clk 0:00:21.4]} 24. Ne4 {[%clk 0:01:02.9]} 24... Bxc6 {[%clk 0:00:08.2]} 25.
dxc6 {[%clk 0:01:03.6]} 25... Qa5 {[%clk 0:00:08.3]} 26. Ra1 {[%clk 0:00:56.6]}
26... Qb4 {[%clk 0:00:09.6]} 27. Bc3 {[%clk 0:00:54.8]} 27... Qb3 {[%clk
0:00:10.6]} 28. Qxb3 {[%clk 0:00:51.2]} 28... Nxb3 {[%clk 0:00:12.5]} 29. Nxd6
{[%clk 0:00:52.9]} 29... Nxa1 {[%clk 0:00:12]} 30. cxd7 {[%clk 0:00:54.3]} 30...
Nc2 {[%clk 0:00:12.2]} 31. Nb7 {[%clk 0:00:53.3]} 31... b4 {[%clk 0:00:13]} 32.
Bb2 {[%clk 0:00:46.5]} 32... a5 {[%clk 0:00:10.9]} 33. d8=Q {[%clk 0:00:41.6]}
33... Rxd8 {[%clk 0:00:11.8]} 34. Nxd8 {[%clk 0:00:43.5]} 34... a4 {[%clk
0:00:13.1]} 35. Be4 {[%clk 0:00:42.6]} 35... Ne3 {[%clk 0:00:14]} 36. Bd4 {[%clk
0:00:36.2]} 36... Nc4 {[%clk 0:00:15.3]} 37. Bd5 {[%clk 0:00:36.1]} 37... Nd2
{[%clk 0:00:14.2]} 38. Bxf7+ {[%clk 0:00:33.6]} 38... Kh8 {[%clk 0:00:14.1]} 39.
Kf2 {[%clk 0:00:34.5]} 39... a3 {[%clk 0:00:13.3]} 40. Ne6 {[%clk 0:00:30.4]}
40... h6 {[%clk 0:00:07.2]} 41. f5 {[%clk 0:00:31.3]} 41... b3 {[%clk 0:00:04]}
42. Bxg7+ {[%clk 0:00:29.9]} 42... Kh7 {[%clk 0:00:04.1]} 43. f6 {[%clk
0:00:28.3]} 1-0

[Event "*** Titled Tuesday Blitz"]
[Site "Chess.com"]
[Date "2019.01.01"]
[Round "1"]
[White "NemtsevIgor"]
[Black "maciek_92"]
[Result "1-0"]
[WhiteElo "2316"]
[BlackElo "2634"]
[TimeControl "180+2"]
[EndTime "13:09:34 PST"]
[Termination "NemtsevIgor won by resignation"]

1. d4 {[%clk 0:02:57.7]} 1... f5 {[%clk 0:03:00.7]} 2. Nc3 {[%clk 0:02:57.2]}
2... Nf6 {[%clk 0:02:56.2]} 3. Bg5 {[%clk 0:02:57.1]} 3... d5 {[%clk 0:02:57.6]}
4. Bxf6 {[%clk 0:02:57.5]} 4... exf6 {[%clk 0:02:56.3]} 5. e3 {[%clk 0:02:58.2]}
5... Be6 {[%clk 0:02:54.2]} 6. h4 {[%clk 0:02:58.2]} 6... h5 {[%clk 0:02:45.8]}
7. Nh3 {[%clk 0:02:57.6]} 7... g6 {[%clk 0:02:47]} 8. Nf4 {[%clk 0:02:57.9]}
8... Bf7 {[%clk 0:02:45.2]} 9. g3 {[%clk 0:02:59.1]} 9... c6 {[%clk 0:02:45.5]}
10. Bd3 {[%clk 0:02:54.7]} 10... Bd6 {[%clk 0:02:46.6]} 11. Nce2 {[%clk
0:02:55.5]} 11... Qb6 {[%clk 0:02:42.8]} 12. Kf1 {[%clk 0:02:49.6]} 12... Nd7
{[%clk 0:02:38.5]} 13. Kg2 {[%clk 0:02:49.7]} 13... Rb8 {[%clk 0:02:25]} 14. b3
{[%clk 0:02:49.9]} 14... a5 {[%clk 0:02:22]} 15. c4 {[%clk 0:02:48]} 15... Qc7
{[%clk 0:02:23]} 16. cxd5 {[%clk 0:02:45.3]} 16... cxd5 {[%clk 0:02:24.9]} 17.
Rc1 {[%clk 0:02:45.2]} 17... Qb6 {[%clk 0:02:25.6]} 18. Nc3 {[%clk 0:02:33.9]}
18... Bxf4 {[%clk 0:02:26.2]} 19. gxf4 {[%clk 0:02:33]} 19... O-O {[%clk
0:02:25.7]} 20. Kh2 {[%clk 0:02:24.1]} 20... Kh7 {[%clk 0:02:22]} 21. Rg1 {[%clk
0:02:24.7]} 21... Rbc8 {[%clk 0:02:16.7]} 22. Ne2 {[%clk 0:02:23.5]} 22... Qd6
{[%clk 0:02:10]} 23. Ng3 {[%clk 0:02:22.8]} 23... Rxc1 {[%clk 0:02:10.2]} 24.
Qxc1 {[%clk 0:02:23.4]} 24... a4 {[%clk 0:01:41]} 25. Qc2 {[%clk 0:02:22.4]}
25... axb3 {[%clk 0:01:41.5]} 26. axb3 {[%clk 0:02:22.4]} 26... Qc6 {[%clk
0:01:37]} 27. Qe2 {[%clk 0:02:05.8]} 27... Qe6 {[%clk 0:01:34.8]} 28. Rc1 {[%clk
0:01:55.3]} 28... Nb6 {[%clk 0:01:28.4]} 29. Qc2 {[%clk 0:01:53.5]} 29... Rc8
{[%clk 0:01:27.2]} 30. Qd1 {[%clk 0:01:51.4]} 30... Kg7 {[%clk 0:01:19.1]} 31.
Rc5 {[%clk 0:01:45.8]} 31... Rxc5 {[%clk 0:01:14.8]} 32. dxc5 {[%clk 0:01:46.9]}
32... Nd7 {[%clk 0:01:16.3]} 33. b4 {[%clk 0:01:47.3]} 33... b6 {[%clk
0:01:16.4]} 34. Qc2 {[%clk 0:01:39.9]} 34... bxc5 {[%clk 0:01:16.3]} 35. bxc5
{[%clk 0:01:41.1]} 35... Qc6 {[%clk 0:01:17.7]} 36. Bxf5 {[%clk 0:01:31.7]}
36... gxf5 {[%clk 0:01:17.2]} 37. Nxf5+ {[%clk 0:01:31.8]} 37... Kf8 {[%clk
0:01:17.2]} 38. Nd4 {[%clk 0:01:25.1]} 38... Qxc5 {[%clk 0:01:14.5]} 39. Qf5
{[%clk 0:01:26.1]} 39... Ke7 {[%clk 0:01:11.9]} 40. Qh7 {[%clk 0:01:24]} 40...
Nf8 {[%clk 0:00:51.7]} 41. Nf5+ {[%clk 0:01:18.7]} 41... Ke8 {[%clk 0:00:52.7]}
42. Ng7+ {[%clk 0:01:17.1]} 42... Kd8 {[%clk 0:00:54.2]} 43. Qh6 {[%clk
0:01:15]} 43... Nd7 {[%clk 0:00:33.8]} 44. Nf5 {[%clk 0:01:10.5]} 44... Qf8
{[%clk 0:00:33.8]} 45. Ng7 {[%clk 0:00:59.6]} 45... Ke7 {[%clk 0:00:23.4]} 46.
Nf5+ {[%clk 0:00:58.7]} 46... Ke8 {[%clk 0:00:24.6]} 47. Ng7+ {[%clk 0:00:59.8]}
47... Kd8 {[%clk 0:00:25.9]} 48. Qh7 {[%clk 0:00:49.3]} 48... Qg8 {[%clk
0:00:20.4]} 49. Qh6 {[%clk 0:00:50.2]} 49... Kc7 {[%clk 0:00:19.5]} 50. Kh3
{[%clk 0:00:38.9]} 50... Qf8 {[%clk 0:00:14.6]} 51. Kh2 {[%clk 0:00:39.7]} 51...
Qg8 {[%clk 0:00:10]} 52. Kh3 {[%clk 0:00:40.6]} 52... Be6+ {[%clk 0:00:10.6]}
53. Kh2 {[%clk 0:00:38.7]} 53... Bg4 {[%clk 0:00:11.4]} 54. Qg6 {[%clk
0:00:37.9]} 54... d4 {[%clk 0:00:08.2]} 55. Ne8+ {[%clk 0:00:38.6]} 1-0